Cogmind - Beta 13 @@@ ROGUE MODE // 2024.04.09 @ 06:14:50 Player: iwantthegold Result: Destroyed by G-47 Trooper with Particle Gun Performance ------------- Evolutions (2) 1000 Regions Visited (4) 800 Robots Destroyed (34) 170 Value Destroyed (1147) 1147 Prototype IDs (4) 80 Alien Tech Used (0) 0 Bonus (37) 37 TOTAL SCORE: 3234 Bonus ------- Follower Combat Kills 37 Cogmind --------- Core Integrity 0/550 Matter 285/300 Energy 206/280 System Corruption 4% Temperature Cool (12) Movement Core (250) Ox4 Location -8/Storage Parts ------- > --- POWER (1) -------- Heavy Ion Engine > --- PROPULSION (3) --- (None) > --- UTILITY (3) ------ (None) > --- WEAPON (4) ------- Assault Cannon > --- INVENTORY (5) ---- Light Deuterium Engine Light Angular Momentum Engine Peak State ------------ > --- POWER ------------ Cooled Ion Engine > --- PROPULSION ------- Aluminum Leg Carbon-fiber Leg > --- UTILITY ---------- Remote Shield System Shield > --- WEAPON ----------- Heavy Particle Gun Assault Cannon > --- INVENTORY -------- Improved Ion Engine Light Deuterium Engine Light Angular Momentum Engine [Rating: 23] Favorites ----------- Power Ion Engine Engine Ion Engine Propulsion Aluminum Leg Leg Aluminum Leg Wheel Wheel Utility Small Storage Unit Device Remote Shield Storage Small Storage Unit Hackware System Shield Protection Medium Armor Plating Weapon Light Assault Rifle Energy Gun Medium Laser Energy Cannon Advanced Beam Cannon Ballistic Gun Light Assault Rifle Ballistic Cannon Improved Light Cannon Special Weapon Mining Laser Build | -11 -10 -9 -8 -8 ------- Run | Yrd Mat Mat Mat Sto Slots Evolved 4 | . . 2 2 . Power . | . . . . . Propulsion 1 | . . 1 . . Utility 1 | . . . 1 . Weapon 2 | . . 1 1 . Parts Attached 58 | 7 3 26 9 13 Power 9 | 1 . 4 1 3 Engine 9 | 1 . 4 1 3 Core . | . . . . . Reactor . | . . . . . Propulsion 12 | 3 . 7 1 1 Treads . | . . . . . Leg 11 | 2 . 7 1 1 Wheel 1 | 1 . . . . Hover . | . . . . . Flight . | . . . . . Utility 6 | 1 2 . 1 2 Device 1 | . . . . 1 Storage 3 | 1 2 . . . Processor . | . . . . . Hackware 1 | . . . . 1 Protection 1 | . . . 1 . Artifact . | . . . . . Weapon 31 | 2 1 15 6 7 Energy Gun 7 | 1 1 2 . 3 Energy Cannon 8 | . . 5 2 1 Ballistic Gun 7 | 1 . 3 3 . Ballistic Cannon 4 | . . . 1 3 Launcher . | . . . . . Special Weapon 5 | . . 5 . . Impact Weapon . | . . . . . Slashing Weapon . | . . . . . Piercing Weapon . | . . . . . Special Melee Weapon . | . . . . . Unidentified Prototypes 4 | . . 1 . 3 Parts Lost 28 | . . 5 4 19 Power 5 | . . 2 1 2 Propulsion 7 | . . 2 1 4 Utility 5 | . . . . 5 Weapon 11 | . . 1 2 8 Highest Loss Streak 12 | . . 2 4 12 To Critical Strikes . | . . . . . Average Slot Usage (%) 92 | . 97 97 98 63 Engine 10 | . 14 10 8 8 Leg 27 | . 28 32 26 14 Storage 19 | . 25 22 18 5 Protection 2 | . . . 9 3 Energy Gun 7 | . 14 8 . 5 Energy Cannon 6 | . . 8 11 3 Ballistic Gun 13 | . 14 12 18 8 Ballistic Cannon 1 | . . . . 7 Special Weapon 2 | . . 2 5 . Naked Turns . | . . . . . Heaviest Build 35 | 13 15 23 32 35 Greatest Support 30 | 10 20 30 30 30 Greatest Overweight (x) 4 | 2 1 1 1 4 Average Overweight (x) . | 1 . . . 1 Largest Inventory Capacity 8 | 8 8 8 8 8 Average Capacity 7 | 6 8 8 8 5 Most Carried 8 | 6 8 8 8 8 Average Carried 6 | 4 7 7 7 4 Final Capacity 8 | 8 8 8 8 5 Final Carried 8 | 6 8 8 8 2 Class Distribution -------------------- 39% | Mutant 25% | Scavenger-Gunner 25% | Scavenger-Tank 8% | Gunner Dominant Class ---------------- Mutant | -10/Materials Scavenger-Gunner | -9/Materials Scavenger-Tank | -8/Materials Mutant | -8/Storage Resources | -11 -10 -9 -8 -8 ----------- Run | Yrd Mat Mat Mat Sto Matter Collected 1131 | 184 145 354 198 250 Remotely . | . . . . . Salvage Created 1381 | . 127 563 284 407 Parts 64 | . 9 32 10 13 Haulers Intercepted . | . . . . . Recyclers Shooed 1 | . . . 1 . Parts Field Recycled . | . . . . . Retrieved Matter . | . . . . . Parts Self-Destructed . | . . . . . Prevented . | . . . . . Kills | -11 -10 -9 -8 -8 ------- Run | Yrd Mat Mat Mat Sto Combat Hostiles Destroyed 33 | . 4 14 6 9 Guns 18 | . 4 7 3 4 Cannons 15 | . . 7 3 5 Classes Destroyed 7 | . 2 2 . 3 Recycler 1 | . . 1 . . Swarmer 8 | . 2 6 . . Grunt 15 | . 2 5 5 3 Brawler 1 | . . . . 1 Duelist 2 | . . . . 2 Protector 1 | . . . . 1 Sentry 6 | . . 3 1 2 Best Kill Streak 4 | . 2 4 4 4 Combat Bots Only 4 | . 2 3 4 4 Max Kills in Single Turn 2 | . 1 2 1 1 Gunslinging . | . . . . . Exploded . | . . . . . Melee . | . . . . . Uniques/NPCs Destroyed . | . . . . . Combat | -11 -10 -9 -8 -8 -------- Run | Yrd Mat Mat Mat Sto Hostile Shots Fired 309 | . 43 92 38 136 Missed 54 | . 12 15 3 24 Damage Taken 3579 | . 336 835 596 1812 Core 854 | . 85 207 54 508 Absorbed by Shields 50 | . . . . 50 Core Remaining (%) 71 | 100 66 48 . . Volleys Fired 139 | . 20 52 18 49 Largest 4 | . 2 3 4 4 Hottest 204 | . 85 204 151 153 Shots Fired 293 | . 39 123 45 86 Gun 182 | . 39 74 21 48 Cannon 94 | . . 37 19 38 Launcher . | . . . . . Special 17 | . . 12 5 . Kinetic 130 | . 19 41 21 49 Thermal 152 | . 20 71 24 37 Explosive . | . . . . . Electromagnetic 11 | . . 11 . . Robot Hit Streak 10 | . 4 7 8 10 Robot Miss Streak 5 | . 2 5 2 4 Penetration Max . | . . . . . Secondary Targets . | . . . . . Shots Hit Robots 151 | . 20 47 30 54 Core Hits 66 | . 8 22 14 22 Critical Kills 1 | . . 1 . . Critical Parts Destroyed . | . . . . . Critical Strikes 6 | . 2 3 . 1 Burn 4 | . 2 1 . 1 Destroy 2 | . . 2 . . Melee Attacks . | . . . . . Impact . | . . . . . Slashing . | . . . . . Piercing . | . . . . . Sneak Attacks . | . . . . . Combat Hostiles . | . . . . . Follow-up Attacks . | . . . . . Damage Inflicted 2664 | . 227 742 579 1116 Guns 1406 | . 227 353 203 623 Cannons 1186 | . . 389 304 493 Explosions . | . . . . . Melee . | . . . . . Ramming . | . . . . . Kinetic 957 | . 66 104 203 584 Thermal 1640 | . 161 571 376 532 Explosive . | . . . . . Electromagnetic 67 | . . 67 . . Impact . | . . . . . Slashing . | . . . . . Piercing . | . . . . . Highest Corruption 4 | . 1 2 . 4 Average Corruption 2 | . 1 2 . 4 Corruption Purged . | . . . . . Corruption Blocked . | . . . . . Effects 11 | . 1 4 . 6 Matter Fused 1 | . . . . 1 Heat Flow Errors 1 | . . 1 . . Parts Rejected 1 | . . . . 1 Parts Fused 2 | . . 1 . 1 Data Loss (minor) 2 | . . 1 . 1 Data Loss (major) 2 | . 1 1 . . Weapon Failures 2 | . . . . 2 Overload Shots . | . . . . . Overflow Damage 12 | . . 2 . 10 Projectiles 12 | . . 2 . 10 Explosions . | . . . . . Melee . | . . . . . Knockbacks 3 | . . . . 3 Impact . | . . . . . Kinetic 3 | . . . . 3 Secondary . | . . . . . Self-Inflicted Damage . | . . . . . Shots . | . . . . . Rammed . | . . . . . Targets Rammed . | . . . . . Kicked . | . . . . . Crushed . | . . . . . Highest Temperature 933 | . 294 933 430 576 Average Temperature 186 | . 110 194 199 200 Received Heat Transfer 1390 | . 132 180 342 736 Effects 48 | . 3 27 3 15 Shutdowns 6 | . . 4 . 2 Energy Bleed 8 | . 2 3 1 2 Interference 13 | . 1 7 . 5 Matter Decay 4 | . . 1 1 2 Short Circuit 3 | . . 2 . 1 Damage (minor) 8 | . . 4 1 3 Damage (major) 4 | . . 4 . . Damage (core) 2 | . . 2 . . Siege Activations . | . . . . . Robots Corrupted . | . . . . . Combat Hostiles . | . . . . . Parts Fried . | . . . . . Impact Corruptions . | . . . . . Robots Melted . | . . . . . Combat Hostiles . | . . . . . Parts Melted 4 | . . 2 1 1 Heat Transferred 3545 | . 592 1221 668 1064 Parts Sabotaged . | . . . . . Parts Stolen . | . . . . . Parts Stripped . | . . . . . Power Chain Reactions . | . . . . . Alert | -11 -10 -9 -8 -8 ------- Run | Yrd Mat Mat Mat Sto Peak Influence 325 | . 181 325 302 214 Initial 130 | . . 76 130 127 Average 152 | . 84 191 202 158 Maximum Alert Level 1 | . . 1 1 1 Low Security (%) 73 | 100 100 53 59 95 Level 1 26 | . . 46 40 4 Level 2 . | . . . . . Level 3 . | . . . . . Level 4 . | . . . . . Level 5 . | . . . . . High Security . | . . . . . Max Security . | . . . . . Squads Dispatched 7 | . . 3 . 4 Investigation . | . . . . . Extermination . | . . . . . Reinforcement 3 | . . 3 . . Assault 2 | . . . . 2 Garrison 2 | . . . . 2 Intercept . | . . . . . Searches Triggered . | . . . . . Construction Impeded . | . . . . . Haulers Reinforced . | . . . . . Active Scanning Responses . | . . . . . Cargo Convoy Interrupts . | . . . . . Stealth | -11 -10 -9 -8 -8 --------- Run | Yrd Mat Mat Mat Sto Distress Signals 4 | . 2 1 1 . Communications Jammed . | . . . . . Distress Signals . | . . . . . Times Spotted 58 | . 9 22 10 17 Peak Tracking Total 12 | . 4 9 5 12 Tactical Retreats 7 | . 1 2 2 2 Traps | -11 -10 -9 -8 -8 ------- Run | Yrd Mat Mat Mat Sto Traps Triggered 1 | . 1 . . . Indirectly . | . . . . . Trap Hack Attempts . | . . . . . Triggered . | . . . . . Disarmed . | . . . . . Reprogrammed . | . . . . . Reused . | . . . . . Traps Extracted . | . . . . . Installed . | . . . . . Triggered . | . . . . . Machines | -11 -10 -9 -8 -8 ---------- Run | Yrd Mat Mat Mat Sto Machines Disabled 1 | . . 1 . . Max in Single Turn 1 | . . 1 . . Machines Repaired . | . . . . . Machines Dismantled . | . . . . . Machines Sabotaged . | . . . . . Overloaded Fab Kills . | . . . . . Hacking | -11 -10 -9 -8 -8 --------- Run | Yrd Mat Mat Mat Sto Machines Accessed 7 | . 3 1 3 . Terminals 5 | . 2 1 2 . Fabricators . | . . . . . Repair Stations 2 | . 1 . 1 . Recycling Units . | . . . . . Scanalyzers . | . . . . . Garrison Access . | . . . . . Total Hacks 12 | . 4 2 6 . Successful 7 | . 3 1 3 . Failed 5 | . 1 1 3 . Catastrophic . | . . . . . Database Lockouts . | . . . . . Manual . | . . . . . Terminals 7 | . 2 2 3 . Fabricators . | . . . . . Repair Stations 5 | . 2 . 3 . Recycling Units . | . . . . . Scanalyzers . | . . . . . Garrison Access . | . . . . . Terminal Hacks 5 | . 2 1 2 . Record 2 | . . 1 1 . Locate Traps 1 | . 1 . . . Dispatch Records 1 | . . . 1 . Zone Layout 1 | . 1 . . . Fabricator Hacks . | . . . . . Repair Station Hacks 2 | . 1 . 1 . Scan Component 2 | . 1 . 1 . Recycling Unit Hacks . | . . . . . Scanalyzer . | . . . . . Garrison Access Hacks . | . . . . . Unauthorized Hacks . | . . . . . Terminals . | . . . . . Fabricators . | . . . . . Repair Stations . | . . . . . Recycling Units . | . . . . . Scanalyzers . | . . . . . Garrison Access . | . . . . . Data Cores Recovered . | . . . . . Used . | . . . . . Hacking Detections 3 | . 1 . 2 . Full Trace Events . | . . . . . Feedback Events . | . . . . . Feedback Blocked . | . . . . . Robot Schematics Acquired . | . . . . . Robots Built . | . . . . . Authchips . | . . . . . Time . | . . . . . Total Robot Build Rating . | . . . . . Part Schematics Acquired . | . . . . . Parts Built . | . . . . . Authchips . | . . . . . Time . | . . . . . Total Part Build Rating . | . . . . . Parts Repaired . | . . . . . Time . | . . . . . Parts Recycled . | . . . . . Recycled Matter . | . . . . . Retrieved Matter . | . . . . . Retrieved Components . | . . . . . Parts Scanalyzed . | . . . . . Part Schematics Acquired . | . . . . . Parts Damaged . | . . . . . Bothacking | -11 -10 -9 -8 -8 ------------ Run | Yrd Mat Mat Mat Sto Used RIF Installer . | . . . . . Robots Hacked . | . . . . . Non-combat . | . . . . . Combat . | . . . . . Robot Hacks Applied . | . . . . . Relay Couplers Released . | . . . . . Fabnet Peak Effective % . | . . . . . Robots Rewired . | . . . . . Allies Hacked . | . . . . . Hacks Repelled . | . . . . . Allies | -11 -10 -9 -8 -8 -------- Run | Yrd Mat Mat Mat Sto Total Allies 2 | . . . . 2 Largest Group 2 | . . . . 2 Highest-Rated Group 62 | . . . . 62 Highest-Rated Ally 31 | . . . . 31 Total Orders . | . . . . . Ally Attacks 10 | . . . . 10 Total Damage 161 | . . . . 161 Kills 1 | . . . . 1 Allies Corrupted . | . . . . . Allies Melted . | . . . . . Intel | -11 -10 -9 -8 -8 ------- Run | Yrd Mat Mat Mat Sto Robot Analysis Total . | . . . . . Derelict Logs Recovered . | . . . . . Drone Launches . | . . . . . Drone Recoveries . | . . . . . Exploration | -11 -10 -9 -8 -8 ------------- Run | Yrd Mat Mat Mat Sto Turns Passed 1818 | 132 384 690 372 240 Spaces Moved 881 | 72 229 324 202 54 Core 41 | 21 . . . 20 Treads . | . . . . . Legs 840 | 51 229 324 202 34 Wheels . | . . . . . Hover . | . . . . . Flight . | . . . . . Fastest Speed 50 | 50 120 120 120 50 Average Speed 134 | 162 130 121 135 186 Slowest Speed 250 | 190 190 190 190 250 Overloaded Moves . | . . . . . Propulsion Burnouts . | . . . . . Robots Hopped . | . . . . . Cave-ins Triggered . | . . . . . Exploration Rate (%) 19 | 7 35 34 13 8 Regions Visited 4 Branch Regions 1 Pre-discovered Areas . | . . . . . Known Exits Taken . | . . . . . Unknown Exits Taken 4 | 1 1 1 1 . Scrap Searched . | . . . . . Spaces Dug 7 | . . 7 . . Terrain Destroyed 8 | . . 7 1 . Melee . | . . . . . Projectile 8 | . . 7 1 . AOE . | . . . . . Terrain Rammed . | . . . . . Walls Destroyed . | . . . . . Machines Disabled . | . . . . . Actions | -11 -10 -9 -8 -8 --------- Run | Yrd Mat Mat Mat Sto Total 1252 | 85 280 510 259 118 Wait 115 | . 20 78 17 . Move 877 | 71 228 323 201 54 Hop . | . . . . . Pick Up 33 | 6 5 12 9 1 Fast Attach 28 | 6 2 10 1 9 Attach 17 | 1 . 5 7 4 Detach 2 | 1 . . 1 . Swap 13 | . 1 11 1 . Drop 28 | . 4 19 4 1 Fire 139 | . 20 52 18 49 Melee . | . . . . . Ram . | . . . . . Kick . | . . . . . Crush . | . . . . . Escape Stasis . | . . . . . Rewire . | . . . . . Trap . | . . . . . Miscellaneous . | . . . . . Route ------- -11/Scrapyard -10/Materials -9/Materials (discovered 2 exits: *Mat / [*Min]) -8/Materials -8/Storage History --------- Turn | Location | Event 14 | -11/Scrapyard | Discovered new exit (range 16) 133 | -11/Scrapyard | Entered Materials 309 | -10/Materials | Build established: Mutant 504 | -10/Materials | Discovered new exit (range 4) 517 | -10/Materials | Entered another Materials area 517 | -9/Materials | Evolved 2 slots: Propulsion x1, Weapon x1 963 | -9/Materials | Discovered new exit (range 6) 1051 | -9/Materials | Build established: Scavenger-Gunner 1051 | -9/Materials | Core integrity fell below 50% 1188 | -9/Materials | Discovered new exit (range 10) 1207 | -9/Materials | Entered another Materials area 1207 | -8/Materials | Evolved 2 slots: Utility x1, Weapon x1 1473 | -8/Materials | Lost 4 parts (1p1n2w) 1563 | -8/Materials | Discovered new exit (range 8) 1579 | -8/Materials | Entered Storage 1615 | -8/Storage | Met a pair of Derelict thieves 1630 | -8/Storage | Garrison activated, responded to threat 1770 | -8/Storage | Lost 12 parts (4n4u4w) 1790 | -8/Storage | Core integrity fell below 50% 1809 | -8/Storage | Core integrity fell below 20% 1819 | -8/Storage | Destroyed by G-47 Trooper with Particle Gun Last Messages --------------- 01785_ Acquired Ion Cannon. 01786_ Destroyed Lgt. Nuclear Core. 01787_ Cld. Ion Engine destroyed. 01792_ Ion Cannon destroyed. 01796_ Acquired Hvy. Particle Gun. 01798_ Critical hit (Burn: +37). 01798_ Penetrated by Slug. 01801_ Critical hit (Burn: +37). 01802_ Acquired 20 matter. 01803_ Imp. Ion Engine destroyed. 01805_ Acquired Prototype Engine. 01805_ Identified Hvy. Ion Engine. 01809_ System Shield destroyed. 01809_ Critical hit (Burn: +37). 01811_ Penetrated by Slug. 01813_ Critical hit (Burn: +37). 01814_ Penetrated by Slug. 01814_ Hvy. Particle Gun destroyed. 01815_ Acquired Assault Cannon. 01817_ Penetrated by Slug. Map ----- +----------------------------------------------------+ | ????????????????????????????????????? | | ????????????????????????????????????? | | ????????????????????????????????????? | | ????????????????????????????????????? | | ????????????????????????????????????? | | ????????????????????????????????????? | | ????????????????????????????????????? | | ????????????????????????????????????? | | ????????????????????????????????????? | | ???????????????? ???????????????????? | | ???????????????? ???????????????????? | | ???????????????? ???????????????????? | | ???????????????? ???????????????????? | | ??????????????? ???????????????????? | | ??????????????? #??????????????????? | | ????#######???? #??????????????????? | | ????# #####+#############???????? | | ????# " ??????? | | ????# %" ??????? | | ????# %" ??????? | | ????# #####+#######?????????????? | | ????## ###=%%=##??????????????????? | | ?????# #?#*%]%T#??????????????????? | | ?????# #?##"%"###?????????????????? | | ?????# #?#=hY=!!#?????????????????? | | ?????# #?#@*g **#?????????????????? | | ?????# #?#*=%%* #?????????????????? | | ?????# #?#** !*#?????????????????? | | ?????# #?########?????????????????? | | ?????# #??????????????????????????? | | ?????# #??????????????????????????? | | ?????#####??????????????????????????? | | ????????????????????????????????????? | | ????????????????????????????????????? | | ????????????????????????????????????? | | ????????????????????????????????????? | | ????????????????????????????????????? | | ????????????????????????????????????? | | ????????????????????????????????????? | | ????????????????????????????????????? | | ????????????????????????????????????? | | ????????????????????????????????????? | | ????????????????????????????????????? | | | | | | | | | | | | | | | +----------------------------------------------------+ Best States ------------- Heat Dissipation 31 Energy Generation 14 Energy Capacity 280 Matter Stores 350 Matter Capacity 350 Sight Range 16 Terrain Scan Density 10 Armor Coverage 225 Evasion (%) 55 Defensive Hacking 10 Item Schematics ----------------- None Robot Schematics ------------------ None Fabricated ------------ Nothing Alien Tech Used ----------------- None Achievements -------------- None Challenges ------------ None Game ------ Seed InertialFlakRedistributor Manual? 0 Play Time 00:34:04 Cumulative 8.4 hours Start 2024.04.09 @ 05:41:43 End 2024.04.09 @ 06:14:50 Sessions 1 Manual Loads 0 Difficulty Rogue Special Mode None Game No. 9 Rogue 9 Adventurer 0 Explorer 0 Win Type - Total 0 Types 0/0/0/0/0/0/0/0/0 Lore% 1 Gallery% 12 Achievement% 11 Wizard Run 0 Options --------- Layout 1 ASCII 0 Keyboard 0 Movement Mouse Keybinds 0 Fullscreen 1 Font 18/SmallcapsGlow Map View 54x44 Zoom Use 0% Tactical HUD 1 Map Filters NONE Filters NONE Steam 0 RUN: 08ee7590-7ab5-4d30-a2da-0929b7c9a854